bitfinex-derivatives/quotes_BTCF0:USTF0_20260107
["timestamp","ask_amount","ask_price","bid_price","bid_amount"]
[1767771574516,0.010774,92884.0,92868.0,0.02315713]
[1767771575023,0.02160831,92885.0,92867.0,0.09490404]
[1767771575415,0.010774,92881.0,92867.0,0.09490404]
[1767771576117,0.010774,92879.0,92864.0,0.09156]
[1767771578116,0.010774,92878.0,92864.0,0.09156]
[1767771578325,0.010774,92882.0,92865.0,0.02315713]
[1767771579324,0.010774,92882.0,92867.0,0.02315713]
[1767771580720,0.09156,92886.0,92869.0,0.02315713]
[1767771581029,0.09156,92886.0,92868.0,0.09490404]
[1767771581330,0.010774,92881.0,92865.0,0.02315713]
[1767771585428,0.03238231,92885.0,92865.0,0.02315713]
[1767771585925,0.010774,92885.0,92872.0,0.02315713]
[1767771586123,0.09156,92886.0,92874.0,0.02315713]
[1767771586722,0.09156,92886.0,92873.0,0.09490404]
[1767771586925,0.102334,92886.0,92870.0,0.11426865]
[1767771587127,0.102334,92886.0,92870.0,0.02315713]
[1767771590234,0.010774,92884.0,92870.0,0.02315713]
[1767771590529,0.010774,92884.0,92867.0,0.11806117]
[1767771591834,0.010774,92884.0,92868.0,0.02315713]
[1767771599137,0.010774,92884.0,92869.0,0.01989183]
[1767771600641,0.010774,92882.0,92869.0,0.01989183]
[1767771602137,0.09156,92886.0,92869.0,0.01989183]
[1767771602325,0.09156,92886.0,92864.0,0.09156]
[1767771602326,0.010774,92878.0,92865.0,0.02073825]
[1767771603042,0.010774,92881.0,92865.0,0.02073825]
[1767771603840,0.010774,92879.0,92864.0,0.09156]
[1767771604229,0.010774,92879.0,92864.0,0.11229825]
[1767771604528,0.010774,92879.0,92865.0,0.02073825]
[1767771605234,0.010775,92874.0,92861.0,0.02073825]
[1767771605439,0.01963656,92875.0,92861.0,0.09156]
[1767771605826,0.01963656,92880.0,92861.0,0.09156]
[1767771606637,0.010775,92875.0,92861.0,0.09156]
[1767771607936,0.010775,92873.0,92861.0,0.09156]
[1767771609941,0.010775,92871.0,92861.0,0.09156]
[1767771610445,0.010775,92871.0,92860.0,0.01424241]
[1767771610646,0.010775,92871.0,92857.0,0.09156]
[1767771610833,0.01963656,92875.0,92857.0,0.01445417]
[1767771611039,0.010776,92868.0,92856.0,0.16232687]
[1767771611251,0.010776,92868.0,92854.0,0.09156]
[1767771611747,0.010776,92868.0,92854.0,0.1060991]
[1767771613252,0.01963656,92869.0,92854.0,0.0145391]
[1767771613441,0.01963656,92869.0,92853.0,0.09156]
[1767771613946,0.010776,92863.0,92853.0,0.09156]
[1767771615046,0.010776,92867.0,92853.0,0.10576178]
[1767771615648,0.010776,92865.0,92853.0,0.12650003]
[1767771617551,0.010775,92873.0,92854.0,0.02073825]
[1767771617743,0.11381444,92875.0,92854.0,0.02073825]
[1767771617744,0.010775,92871.0,92854.0,0.02073825]
[1767771618459,0.11381444,92875.0,92853.0,0.19695212]
[1767771618460,0.010775,92875.0,92866.0,0.02073825]
[1767771618650,0.09156,92876.0,92867.0,0.02073825]
[1767771618841,0.09156,92876.0,92870.0,0.02073825]
[1767771619246,0.09156,92876.0,92866.0,0.02073825]
[1767771621048,0.09156,92876.0,92863.0,0.11192859]
[1767771621249,0.09156,92876.0,92864.0,0.02073825]
[1767771626762,0.09156,92876.0,92863.0,0.09119034]
[1767771630461,0.09156,92876.0,92861.0,0.02073825]
[1767771632768,0.09156,92876.0,92861.0,0.11918098]
[1767771633563,0.010775,92875.0,92857.0,0.01811504]
[1767771633756,0.010775,92875.0,92857.0,0.11655777]
[1767771633956,0.010775,92875.0,92858.0,0.01811504]
[1767771634362,0.010775,92875.0,92859.0,0.01811504]
[1767771634863,0.09156,92876.0,92859.0,0.01811504]
[1767771634864,0.010775,92871.0,92859.0,0.01811504]
[1767771635674,0.010775,92874.0,92859.0,0.01811504]
[1767771636973,0.010775,92872.0,92859.0,0.01811504]
[1767771637270,0.010775,92872.0,92858.0,0.09844273]
[1767771638276,0.010775,92875.0,92858.0,0.11655777]
[1767771638875,0.010775,92873.0,92858.0,0.11655777]
[1767771640569,0.010775,92873.0,92856.0,0.01811504]
[1767771640771,0.010775,92873.0,92857.0,0.01811504]
[1767771640970,0.03007924,92875.0,92856.0,0.09844273]
[1767771641171,0.01930424,92874.0,92856.0,0.09844273]
[1767771641375,0.010775,92873.0,92856.0,0.09844273]
[1767771641678,0.010775,92871.0,92856.0,0.09844273]
[1767771642375,0.010775,92871.0,92856.0,0.11655777]
[1767771643680,0.010775,92871.0,92857.0,0.01811504]
[1767771644180,0.010775,92875.0,92857.0,0.01811504]
[1767771644780,0.010775,92873.0,92856.0,0.09844273]
[1767771644981,0.010775,92871.0,92854.0,0.01811504]
[1767771645583,0.010775,92871.0,92855.0,0.01811504]
[1767771645885,0.010775,92871.0,92855.0,0.11655777]
[1767771646072,0.010775,92871.0,92856.0,0.01811504]
[1767771646885,0.010776,92869.0,92856.0,0.01811504]
[1767771647085,0.010776,92867.0,92853.0,0.10576178]
[1767771647486,0.010776,92867.0,92853.0,0.12387682]
[1767771647778,0.010776,92867.0,92853.0,0.01420178]
[1767771647986,0.010776,92867.0,92851.0,0.10967504]
[1767771648175,0.010776,92867.0,92852.0,0.11655777]
[1767771648487,0.010776,92867.0,92853.0,0.01811504]
[1767771648687,0.010775,92870.0,92853.0,0.01811504]
[1767771648985,0.01930424,92874.0,92853.0,0.03367885]
[1767771649487,0.01930424,92874.0,92854.0,0.01811504]
[1767771650486,0.102335,92876.0,92861.0,0.01811504]
[1767771651280,0.010775,92874.0,92861.0,0.01811504]
[1767771651586,0.010775,92874.0,92860.0,0.09844273]
[1767771651587,0.010775,92872.0,92860.0,0.09844273]
[1767771662391,0.09156,92876.0,92862.0,0.017578]
[1767771662891,0.09156,92876.0,92863.0,0.10788307]
[1767771663097,0.09156,92876.0,92864.0,0.017578]
[1767771665601,0.09491602,92886.0,92866.0,0.01608331]
[1767771665795,0.09118643,92880.0,92869.0,0.01608331]
[1767771666093,0.010774,92879.0,92868.0,0.09611242]
[1767771666487,0.010775,92876.0,92865.0,0.01608331]
[1767771667399,0.09118643,92880.0,92862.0,0.09611242]
[1767771667591,0.010775,92872.0,92862.0,0.11219573]
[1767771670004,0.09118643,92880.0,92862.0,0.11219573]
[1767771670604,0.09118643,92880.0,92864.0,0.01608331]
[1767771670787,0.09118643,92880.0,92866.0,0.01608331]
[1767771672203,0.010774,92879.0,92866.0,0.01608331]
[1767771676506,0.010774,92882.0,92867.0,0.01608331]
[1767771677106,0.010774,92880.0,92867.0,0.01608331]
[1767771679001,0.010774,92880.0,92870.0,0.01608331]
[1767771679208,0.010774,92880.0,92870.0,0.11219573]
[1767771679905,0.010774,92880.0,92866.0,0.01608331]
[1767771680604,0.010774,92880.0,92867.0,0.11219573]
[1767771680807,0.010774,92880.0,92868.0,0.01608331]
[1767771682811,0.010774,92880.0,92868.0,0.11219573]
[1767771683014,0.010774,92880.0,92869.0,0.01608331]
[1767771685612,0.010774,92880.0,92870.0,0.11219573]
[1767771685812,0.010774,92880.0,92871.0,0.01608331]
[1767771689306,0.010774,92880.0,92870.0,0.09611242]
[1767771690407,0.010774,92880.0,92870.0,0.11219573]
[1767771690613,0.010774,92883.0,92873.0,0.01608331]
[1767771691115,0.09156,92885.0,92873.0,0.01608331]
[1767771694216,0.09156,92885.0,92873.0,0.01501331]
[1767771694413,0.01719151,92893.0,92873.0,0.10535605]
[1767771694616,0.09156,92892.0,92880.0,0.09118643]
[1767771694916,0.010773,92891.0,92875.0,0.09034274]
[1767771695610,0.09156,92892.0,92875.0,0.09034274]
[1767771696216,0.09156,92892.0,92877.0,0.01497107]
[1767771697010,0.09156,92892.0,92878.0,0.01497107]
[1767771697312,0.00215266,92909.0,92888.0,0.10531381]
[1767771697513,0.010771,92904.0,92893.0,0.01497107]
[1767771697714,0.010771,92907.0,92894.0,0.01497107]
[1767771698309,0.010771,92904.0,92894.0,0.01497107]
[1767771701310,0.102331,92908.0,92895.0,0.01497107]
[1767771701623,0.102331,92908.0,92896.0,0.10531381]
[1767771701814,0.102331,92908.0,92897.0,0.01497107]
[1767771702324,0.09156,92908.0,92897.0,0.01497107]
[1767771703821,0.09156,92908.0,92898.0,0.01497107]
[1767771704324,0.09156,92908.0,92897.0,0.09034274]
[1767771704522,0.010771,92905.0,92897.0,0.09034274]
[1767771705908,0.09156,92908.0,92897.0,0.10531381]
[1767771708726,0.09156,92913.0,92901.0,0.10531381]
[1767771709026,0.09156,92913.0,92901.0,0.09034274]
[1767771709221,0.09156,92913.0,92898.0,0.10531381]
[1767771709429,0.09156,92913.0,92899.0,0.01497107]
[1767771710228,0.10233,92913.0,92899.0,0.01497107]
[1767771711020,0.10233,92913.0,92898.0,0.09034274]
[1767771711328,0.010771,92910.0,92896.0,0.01497107]
[1767771717231,0.09156,92913.0,92896.0,0.01497107]
[1767771717930,0.010771,92907.0,92893.0,0.09034274]
[1767771718631,0.010771,92907.0,92893.0,0.10531381]
[1767771719131,0.010771,92907.0,92895.0,0.01680823]
[1767771719332,0.010771,92907.0,92896.0,0.01680823]
[1767771720833,0.010771,92907.0,92888.0,0.4]
[1767771720834,0.010771,92905.0,92893.0,0.01680823]
[1767771721535,0.010771,92908.0,92893.0,0.01680823]
[1767771722136,0.010771,92908.0,92894.0,0.01563489]
[1767771722831,0.010771,92906.0,92894.0,0.01563489]
[1767771723932,0.01628243,92909.0,92889.0,0.01563489]
[1767771724136,0.010772,92896.0,92887.0,0.09156]
[1767771724439,0.010772,92896.0,92883.0,0.09156]
[1767771724826,0.01628243,92900.0,92883.0,0.09156]
[1767771725027,0.010773,92893.0,92879.0,0.00215335]
[1767771725430,0.010773,92893.0,92880.0,0.1614378]
[1767771725742,0.010772,92897.0,92880.0,0.17707269]
[1767771725944,0.09156,92902.0,92885.0,0.01563489]
[1767771726439,0.010772,92898.0,92885.0,0.01563489]
[1767771726627,0.010772,92898.0,92884.0,0.09880982]
[1767771726829,0.010772,92895.0,92879.0,0.00215335]
[1767771727040,0.010773,92893.0,92879.0,0.00215335]
[1767771727241,0.010773,92893.0,92882.0,0.16182795]
[1767771727441,0.010773,92893.0,92880.0,0.16182795]
[1767771727637,0.010773,92893.0,92879.0,0.00215335]
[1767771727638,0.010773,92893.0,92879.0,0.01778824]
[1767771727837,0.010773,92893.0,92880.0,0.16182795]
[1767771728230,0.02705443,92898.0,92880.0,0.16182795]
[1767771728435,0.010772,92898.0,92880.0,0.17746284]
[1767771728941,0.010773,92895.0,92880.0,0.17746284]
[1767771729140,0.010773,92895.0,92880.0,0.26318181]
[1767771730138,0.010772,92898.0,92888.0,0.01563489]
[1767771730334,0.010772,92901.0,92888.0,0.11444471]
[1767771730639,0.09156,92902.0,92890.0,0.01563489]
[1767771734046,0.09156,92902.0,92894.0,0.01563489]
[1767771734541,0.09156,92902.0,92890.0,0.01563489]
[1767771735537,0.01628243,92900.0,92880.0,0.10104941]
[1767771735838,0.010773,92894.0,92880.0,0.16222401]
[1767771736030,0.01628243,92895.0,92880.0,0.16222401]
[1767771736435,0.09341721,92896.0,92880.0,0.16222401]
[1767771736640,0.010772,92895.0,92880.0,0.16222401]
[1767771739246,0.010772,92898.0,92883.0,0.01563489]
[1767771739546,0.010772,92898.0,92885.0,0.01563489]
[1767771739945,0.010772,92898.0,92884.0,0.09880982]
[1767771742348,0.010772,92898.0,92882.0,0.01563489]
[1767771745247,0.010772,92896.0,92882.0,0.01563489]
[1767771748447,0.10784243,92902.0,92882.0,0.01563489]
[1767771748448,0.010773,92894.0,92882.0,0.01563489]
[1767771750048,0.010773,92891.0,92882.0,0.01563489]
[1767771750450,0.010773,92891.0,92879.0,0.10096317]
[1767771750650,0.010773,92894.0,92880.0,0.01563489]
[1767771750856,0.010773,92894.0,92881.0,0.01563489]
[1767771751259,0.010773,92894.0,92882.0,0.16151303]
[1767771752555,0.010773,92892.0,92882.0,0.16151303]
[1767771759766,0.010773,92889.0,92879.0,0.00215335]
[1767771760156,0.010773,92889.0,92879.0,3.5e-07]
[1767771760157,0.12534058,92881.0,92879.0,3.5e-07]
[1767771760360,0.11456658,92880.0,92879.0,3.5e-07]
[1767771760561,0.11456658,92880.0,92859.0,0.01374545]
[1767771760562,0.010774,92879.0,92862.0,0.0126758]
[1767771760963,0.010774,92879.0,92863.0,0.16157483]
[1767771761650,0.010774,92879.0,92862.0,0.16210846]
[1767771761850,0.010775,92876.0,92861.0,0.0997704]
[1767771762254,0.010775,92876.0,92862.0,0.16210846]
[1767771762764,0.102334,92880.0,92862.0,0.17585391]
[1767771762957,0.010774,92877.0,92862.0,0.17585391]
[1767771764863,0.010775,92871.0,92862.0,0.16210846]
[1767771765462,0.010775,92875.0,92862.0,0.16210846]
[1767771766871,0.010775,92875.0,92862.0,0.17585391]
[1767771768676,0.010775,92875.0,92863.0,0.01374545]
[1767771768974,0.010775,92875.0,92864.0,0.16176788]
[1767771770272,0.010775,92872.0,92864.0,0.16176788]
[1767771771775,0.010775,92872.0,92865.0,0.01374545]
[1767771772073,0.010775,92872.0,92864.0,0.11351585]
[1767771772373,0.010775,92872.0,92865.0,0.16241202]
[1767771773376,0.02556787,92904.0,92878.0,0.0997704]
[1767771773569,0.010773,92890.0,92882.0,0.0997704]
[1767771773762,0.102333,92890.0,92879.0,0.01374545]
[1767771779474,0.102333,92890.0,92877.0,0.0997704]
[1767771780169,0.010773,92888.0,92877.0,0.0997704]
[1767771780373,0.18271083,92890.0,92877.0,0.0997704]
[1767771782180,0.010773,92889.0,92877.0,0.0997704]
[1767771784479,0.010773,92889.0,92877.0,0.11505974]
[1767771784680,0.18271083,92890.0,92877.0,0.11505974]
[1767771785687,0.18271083,92890.0,92878.0,0.01528934]
[1767771785891,0.09156,92890.0,92878.0,0.01528934]
[1767771786896,0.09156,92890.0,92879.0,0.01528934]
[1767771789890,0.09156,92890.0,92878.0,0.09890098]
[1767771790095,0.010773,92889.0,92876.0,0.01528934]
[1767771795300,0.18271083,92890.0,92876.0,0.01528934]
[1767771795489,0.09156,92890.0,92878.0,0.01528934]
[1767771795687,0.09156,92890.0,92873.0,0.01528934]
[1767771796101,0.09156,92890.0,92874.0,0.01528934]
[1767771796301,0.09156,92890.0,92875.0,0.01528934]
[1767771797011,0.102333,92890.0,92875.0,0.01528934]
[1767771797513,0.010774,92886.0,92868.0,0.05875975]
[1767771797814,0.010774,92886.0,92870.0,0.09115083]
[1767771798008,0.010774,92886.0,92869.0,0.01528934]
[1767771798202,0.010774,92886.0,92869.0,0.11419032]
[1767771798402,0.010774,92886.0,92870.0,0.01528934]
[1767771800402,0.010774,92886.0,92871.0,0.01528934]
[1767771803215,0.010774,92886.0,92872.0,0.01528934]
[1767771803906,0.010774,92886.0,92873.0,0.01528934]
[1767771807515,0.010774,92886.0,92873.0,0.11419032]
[1767771807715,0.010774,92886.0,92874.0,0.01528934]
[1767771809816,0.010774,92884.0,92874.0,0.01528934]
[1767771811419,0.010774,92884.0,92873.0,0.09890098]
[1767771811806,0.18271083,92890.0,92873.0,0.09890098]
[1767771811807,0.010774,92886.0,92873.0,0.09890098]
[1767771813016,0.010774,92886.0,92873.0,0.11301434]
[1767771814415,0.010774,92884.0,92873.0,0.11301434]
[1767771816017,0.010773,92888.0,92873.0,0.11301434]
[1767771818320,0.010774,92885.0,92873.0,0.11301434]
[1767771818520,0.010774,92885.0,92868.0,0.01411336]
[1767771818819,0.010774,92885.0,92870.0,0.01411336]
[1767771819023,0.010774,92885.0,92871.0,0.01411336]
[1767771819427,0.010774,92885.0,92872.0,0.01411336]
[1767771821227,0.010773,92888.0,92873.0,0.01411336]
[1767771821424,0.010773,92888.0,92874.0,0.01411336]
[1767771821616,0.010773,92888.0,92876.0,0.01411336]
[1767771823725,0.010774,92886.0,92875.0,0.09396575]
[1767771823917,0.09116011,92889.0,92868.0,0.01411336]
[1767771824118,0.09116011,92889.0,92870.0,0.01411336]
[1767771824321,0.010774,92886.0,92871.0,0.01411336]
[1767771824625,0.010774,92886.0,92872.0,0.01411336]
[1767771825327,0.19348383,92890.0,92873.0,0.01411336]
[1767771825521,0.19348383,92890.0,92874.0,0.01411336]
[1767771827722,0.010773,92887.0,92873.0,0.09396575]
[1767771829327,0.010774,92884.0,92873.0,0.09396575]
[1767771829917,0.19651136,92890.0,92869.0,0.01411336]
[1767771830113,0.010774,92883.0,92869.0,0.01411336]
[1767771833025,0.010774,92883.0,92866.0,0.01411336]
[1767771833326,0.010774,92883.0,92867.0,0.01411336]
[1767771833530,0.010774,92883.0,92868.0,0.01411336]
[1767771834129,0.010774,92883.0,92869.0,0.01411336]
[1767771840931,0.01380053,92889.0,92869.0,0.01411336]
[1767771841136,0.010775,92873.0,92866.0,0.01233645]
[1767771841338,0.0129423,92884.0,92864.0,0.15152976]
[1767771841636,0.01226893,92880.0,92865.0,0.16081045]
[1767771841939,0.102333,92890.0,92853.0,0.02631156]
[1767771841940,0.010776,92867.0,92855.0,0.01265464]
[1767771842133,0.010776,92867.0,92853.0,0.07335156]
[1767771842333,0.010776,92867.0,92851.0,0.10930902]
[1767771842529,0.010776,92867.0,92856.0,0.16225001]
[1767771842733,0.010776,92867.0,92852.0,0.16087436]
[1767771842934,0.010776,92864.0,92851.0,0.16901058]
[1767771843134,0.010776,92864.0,92852.0,0.16087436]
[1767771843339,0.010776,92861.0,92852.0,0.16087436]
[1767771843642,0.10396346,92870.0,92852.0,0.16087436]
[1767771843838,0.010776,92862.0,92852.0,0.16087436]
[1767771844745,0.10396346,92870.0,92852.0,0.24575703]
[1767771845132,0.010776,92862.0,92852.0,0.24575703]
[1767771845334,0.010776,92867.0,92852.0,0.24575703]
[1767771845637,0.010776,92864.0,92852.0,0.24575703]
[1767771849650,0.010776,92864.0,92852.0,0.25841167]
[1767771850552,0.010776,92864.0,92853.0,0.01265464]
[1767771850746,0.010776,92862.0,92853.0,0.01265464]
[1767771850947,0.010776,92862.0,92852.0,0.24575703]
[1767771850948,0.10382893,92865.0,92851.0,1e-08]
[1767771851153,0.10382893,92865.0,92844.0,0.10930902]
[1767771851347,0.10382893,92865.0,92846.0,0.01265464]
[1767771851554,0.09156,92865.0,92846.0,0.10930902]
[1767771851752,0.09156,92865.0,92847.0,0.17386373]
[1767771852459,0.09156,92865.0,92848.0,0.01265464]
[1767771852656,0.010777,92858.0,92848.0,0.02600524]
[1767771852859,0.010777,92858.0,92849.0,0.16091908]
[1767771853558,0.010777,92858.0,92849.0,0.17357372]
[1767771854157,0.010777,92858.0,92849.0,0.16091908]
[1767771856656,0.010777,92858.0,92849.0,0.17357372]
[1767771859764,0.010777,92858.0,92849.0,0.16091908]
[1767771862353,0.010776,92861.0,92849.0,0.16091908]
[1767771862759,0.010777,92859.0,92849.0,0.16091908]
[1767771864370,0.010776,92863.0,92851.0,0.01265464]
[1767771873371,0.09156,92865.0,92852.0,0.01699761]
[1767771873575,0.09156,92865.0,92857.0,0.01699761]
[1767771874774,0.09156,92865.0,92856.0,0.09308551]
[1767771875579,0.09156,92865.0,92853.0,0.01699761]
[1767771875779,0.010776,92864.0,92853.0,0.01699761]
[1767771876780,0.010776,92862.0,92853.0,0.01699761]
[1767771876979,0.09156,92865.0,92853.0,0.01699761]
[1767771878179,0.010776,92862.0,92853.0,0.01699761]
[1767771880779,0.010776,92866.0,92855.0,0.01699761]
[1767771881081,0.09156,92865.0,92857.0,0.01699761]
[1767771881779,0.010776,92864.0,92853.0,0.01699761]
[1767771882379,0.010776,92864.0,92855.0,0.01699761]
[1767771882584,0.010776,92861.0,92842.0,0.01699761]
[1767771882772,0.010776,92861.0,92841.0,0.18464551]
[1767771882773,0.010776,92861.0,92849.0,0.16224034]
[1767771882973,0.102336,92865.0,92849.0,0.01699761]
[1767771886485,0.010776,92862.0,92849.0,0.01699761]
[1767771887586,0.09156,92865.0,92849.0,0.01699761]
[1767771890187,0.010776,92861.0,92849.0,0.01699761]
[1767771892789,0.010777,92859.0,92848.0,0.01473453]
[1767771892988,0.010777,92859.0,92845.0,0.11008312]
[1767771893190,0.010777,92859.0,92849.0,0.16101546]
[1767771893486,0.010777,92859.0,92848.0,0.01471869]
[1767771893689,0.010777,92859.0,92847.0,0.01699761]
[1767771893990,0.010777,92859.0,92849.0,0.16139517]
[1767771894190,0.010777,92859.0,92848.0,0.16139517]
[1767771894381,0.010777,92859.0,92847.0,0.01699761]
[1767771894582,0.010777,92859.0,92848.0,0.17839278]
[1767771894976,0.010777,92859.0,92848.0,0.16139517]
[1767771895182,0.010777,92857.0,92848.0,0.16139517]
[1767771895391,0.010777,92857.0,92847.0,0.01436907]
[1767771895589,0.010777,92857.0,92848.0,0.16206652]
[1767771896090,0.010777,92857.0,92847.0,0.16117337]
[1767771896291,0.010777,92857.0,92845.0,0.16117337]
[1767771896492,0.010777,92857.0,92843.0,0.03131345]
[1767771896693,0.010777,92857.0,92846.0,0.16170791]
[1767771897089,0.010777,92857.0,92843.0,0.03131345]
[1767771897397,0.010777,92857.0,92847.0,0.16170791]
[1767771897695,0.010777,92857.0,92846.0,0.16170791]
[1767771897696,0.010777,92857.0,92843.0,0.03131345]
[1767771897898,0.010777,92855.0,92843.0,0.01431584]
[1767771898094,0.010777,92855.0,92848.0,0.16176711]
[1767771898295,0.010777,92859.0,92844.0,0.16176711]
[1767771898498,0.010777,92856.0,92849.0,0.16176711]
[1767771898891,0.010777,92856.0,92841.0,0.01699761]
[1767771899399,0.010777,92856.0,92849.0,0.16134971]
[1767771899597,0.010777,92856.0,92841.0,0.01699761]
[1767771899794,0.01583506,92859.0,92841.0,0.01699761]
[1767771900292,0.010778,92851.0,92841.0,0.01699761]
[1767771900496,0.010778,92849.0,92841.0,0.01424821]
[1767771900799,0.010778,92847.0,92834.0,0.09695448]
[1767771900989,0.010778,92847.0,92834.0,0.11124298]
[1767771901313,0.010778,92847.0,92835.0,0.0150813]
[1767771901486,0.010778,92845.0,92834.0,0.0142885]
[1767771901683,0.18279357,92851.0,92831.0,0.0150813]
[1767771901882,0.19815466,92851.0,92831.0,0.0150813]
[1767771902088,0.010778,92845.0,92831.0,0.02973669]
[1767771902288,0.010778,92849.0,92831.0,0.11434554]
[1767771902498,0.010778,92849.0,92832.0,0.01522299]
[1767771902689,0.09156,92851.0,92836.0,0.01522299]
[1767771902894,0.09156,92851.0,92840.0,0.10930132]
[1767771903493,0.09156,92851.0,92841.0,0.01522299]
[1767771903694,0.010776,92860.0,92846.0,0.01522299]
[1767771903997,0.0916,92859.0,92850.0,0.01522299]
[1767771904188,0.0916,92858.0,92850.0,0.01522299]
[1767771904384,0.0916,92857.0,92850.0,0.01522299]
[1767771906103,0.010776,92864.0,92850.0,0.01522299]
[1767771906300,0.0916,92863.0,92850.0,0.01522299]
[1767771906701,0.010776,92864.0,92850.0,0.01522299]
[1767771906902,0.0916,92863.0,92850.0,0.01522299]
[1767771908390,0.0916,92863.0,92849.0,0.09407833]
[1767771908904,0.0916,92863.0,92850.0,0.01522299]
[1767771910900,0.0916,92863.0,92849.0,0.09407833]
[1767771911604,0.0916,92863.0,92849.0,0.10930132]
[1767771912908,0.0916,92863.0,92842.0,0.010778]
[1767771912909,0.0916,92862.0,92851.0,0.01522299]
[1767771913113,0.0916,92861.0,92851.0,0.01522299]
[1767771915302,0.010776,92866.0,92851.0,0.01522299]
[1767771915493,0.0916,92862.0,92853.0,0.01522299]
[1767771917007,0.0916,92862.0,92850.0,0.10645656]
[1767771917510,0.0916,92862.0,92850.0,0.01522299]
[1767771919507,0.0916,92862.0,92850.0,0.01415299]
[1767771920003,0.0916,92862.0,92846.0,0.09407833]
[1767771921210,0.010776,92861.0,92846.0,0.09407833]
[1767771921512,0.010776,92861.0,92847.0,0.01522299]
[1767771924414,0.010776,92861.0,92848.0,0.01522299]
[1767771925212,0.010776,92861.0,92849.0,0.01522299]
[1767771925811,0.0916,92862.0,92849.0,0.01522299]
[1767771926611,0.0916,92862.0,92848.0,0.09407833]
[1767771926914,0.010777,92859.0,92845.0,0.07403412]
[1767771927113,0.010777,92859.0,92846.0,0.01522299]
[1767771927304,0.010777,92857.0,92846.0,0.01522299]
[1767771927509,0.0916,92862.0,92843.0,0.01522299]
[1767771929218,0.010777,92858.0,92843.0,0.01522299]
[1767771932318,0.010777,92858.0,92844.0,0.01409529]
[1767771932521,0.010776,92862.0,92844.0,0.01409529]
[1767771934416,0.01364459,92861.0,92843.0,0.09507222]
[1767771934921,0.10802632,92862.0,92843.0,0.10916751]
[1767771937124,0.010776,92862.0,92844.0,0.01409529]
[1767771938614,0.010776,92862.0,92846.0,0.01409529]
[1767771938821,0.0916,92863.0,92848.0,0.01409529]
[1767771943227,0.010776,92868.0,92852.0,0.01409529]
[1767771943435,0.09725032,92865.0,92845.0,0.09507222]
[1767771943635,0.010776,92866.0,92847.0,0.10916751]
[1767771943833,0.010776,92866.0,92852.0,0.01409529]
[1767771946436,0.0916,92867.0,92857.0,0.01409529]
[1767771946632,0.0916,92867.0,92856.0,0.09507222]
[1767771946835,0.0916,92867.0,92854.0,0.01409529]
[1767771947438,0.09123357,92870.0,92854.0,0.01409529]
[1767771947739,0.09123357,92870.0,92851.0,0.09507222]
[1767771948041,0.0916,92869.0,92851.0,0.10916751]
[1767771948442,0.010776,92868.0,92851.0,0.09507222]
[1767771949539,0.0916,92873.0,92861.0,0.01409529]
[1767771950045,0.0916,92873.0,92855.0,0.010777]
[1767771950046,0.0916,92873.0,92860.0,0.09123357]
[1767771950237,0.0916,92873.0,92858.0,0.01409529]
[1767771951226,0.0916,92873.0,92860.0,0.09123357]
[1767771952544,0.0916,92873.0,92860.0,0.08491845]
[1767771952844,0.0916,92873.0,92858.0,0.01409529]
[1767771953343,0.0916,92873.0,92854.0,0.09507222]
[1767771953344,0.09725032,92871.0,92854.0,0.01409529]
[1767771953751,0.11089491,92871.0,92850.0,0.10532886]
[1767771954048,0.11089491,92871.0,92851.0,0.02487229]
[1767771954747,0.11089491,92871.0,92852.0,0.01409529]
[1767771955043,0.09725032,92871.0,92852.0,0.01409529]
[1767771957447,0.09725032,92871.0,92854.0,0.01409529]
[1767771959051,0.09725032,92871.0,92854.0,0.01302529]
[1767771959341,0.0916,92873.0,92855.0,0.10783482]
[1767771959547,0.0916,92873.0,92860.0,0.09123357]
[1767771959848,0.0916,92873.0,92855.0,0.10783482]
[1767771960937,0.0916,92873.0,92855.0,0.09705782]
[1767771961132,0.0916,92873.0,92855.0,0.11162522]
[1767771961331,0.09380747,92872.0,92852.0,0.0253444]
[1767771961742,0.09380747,92872.0,92852.0,0.0145674]
[1767771964351,0.010775,92871.0,92852.0,0.0145674]
[1767771964551,0.1083484,92871.0,92852.0,0.0145674]
[1767771965042,0.09156,92870.0,92852.0,0.0145674]
[1767771965649,0.1083484,92869.0,92852.0,0.0145674]
[1767771967353,0.0975734,92895.0,92860.0,0.01416944]
[1767771967535,0.01321672,92887.0,92868.0,0.01416944]
[1767771967739,0.09156,92886.0,92868.0,0.01416944]
[1767771971259,0.09156,92886.0,92860.0,0.010776]
[1767771971260,0.11079012,92878.0,92860.0,0.010776]
[1767771971556,0.11079012,92878.0,92862.0,0.010776]
[1767771972252,0.010772,92899.0,92880.0,0.01416944]
[1767771972454,0.010772,92897.0,92880.0,0.01416944]
[1767771972753,0.11079012,92893.0,92874.0,0.01416944]
[1767771973857,0.11079012,92893.0,92875.0,0.10766174]
[1767771974057,0.11079012,92888.0,92869.0,0.01416944]
[1767771974257,0.09156,92887.0,92869.0,0.01416944]
[1767771974458,0.09156,92886.0,92870.0,0.16167647]
[1767771974758,0.09156,92887.0,92870.0,0.16167647]
[1767771974958,0.09156,92887.0,92871.0,0.10766174]
[1767771975263,0.09156,92887.0,92872.0,0.16058993]
[1767771976057,0.0975734,92877.0,92860.0,0.0585356]
[1767771976250,0.20235012,92876.0,92858.0,0.01416944]
[1767771976451,0.20235012,92876.0,92870.0,0.14768992]
[1767771976651,0.1891334,92876.0,92859.0,0.16180045]
[1767771976857,0.1891334,92876.0,92860.0,0.01416944]
[1767771977057,0.1891334,92876.0,92870.0,0.16087204]
[1767771977359,0.1891334,92876.0,92861.0,0.16087204]
[1767771977566,0.1891334,92876.0,92860.0,0.01416944]
[1767771977860,0.13382516,92876.0,92865.0,0.16087204]
[1767771978157,0.13382516,92876.0,92862.0,0.16082824]
[1767771978359,0.09156,92876.0,92866.0,0.16082824]
[1767771978562,0.09156,92876.0,92864.0,0.16082824]
[1767771978760,0.09156,92876.0,92863.0,0.16082824]
[1767771979063,0.09156,92876.0,92865.0,0.16196626]
[1767771979453,0.09156,92876.0,92863.0,0.16196626]
[1767771979951,0.09156,92876.0,92862.0,0.16196626]
[1767771980152,0.09156,92876.0,92861.0,0.16128383]
[1767771980464,0.09156,92876.0,92861.0,0.2689618]
[1767771985266,0.010775,92875.0,92861.0,0.2689618]
[1767771985453,0.09156,92876.0,92861.0,0.2689618]
[1767771989460,0.09156,92876.0,92861.0,0.28313124]
[1767771991465,0.09156,92876.0,92861.0,0.16128383]